bitfinex/quotes_ETHUSD_20250219
["timestamp","ask_amount","ask_price","bid_price","bid_amount"]
[1739925639238,3.73247,2679.2,2678.9,0.7875]
[1739925639432,3.73228,2679.4,2678.9,0.7875]
[1739925640672,3.7324,2679.3,2678.9,0.7875]
[1739925641872,3.73239,2679.3,2678.9,0.7875]
[1739925644488,3.73239,2679.3,2679.0,0.12644864]
[1739925645588,7.46479,2679.3,2679.0,0.12644864]
[1739925645790,0.0279917,2679.2,2679.0,0.12644864]
[1739925647597,3.73239,2679.3,2679.0,0.12644864]
[1739925648070,4.61636266,2679.3,2679.0,0.12644864]
[1739925648961,3.7325,2679.2,2679.0,0.12644864]
[1739925652060,3.7605817,2679.1,2679.0,0.12644864]
[1739925652912,0.55,2679.4,2679.0,0.12644864]
[1739925653056,4.28225,2679.4,2679.0,0.12644864]
[1739925654688,3.7603517,2679.3,2679.0,0.12644864]
[1739925655006,3.73248,2679.2,2679.0,0.12644864]
[1739925655161,0.0279917,2679.1,2679.0,0.12644864]
[1739925655562,4.5388817,2679.1,2679.0,0.12644864]
[1739925655998,4.5388817,2679.1,2678.8,0.73496667]
[1739925656200,0.0279917,2679.1,2679.0,0.12644184]
[1739925656404,0.0279917,2679.2,2678.8,0.73496667]
[1739925656564,0.0279917,2679.2,2679.0,0.89334184]
[1739925656766,3.73245,2679.2,2679.0,0.89334184]
[1739925656973,0.0279917,2679.3,2679.0,0.89334184]
[1739925656974,0.0279917,2679.1,2679.0,0.89334184]
[1739925657182,7.4928017,2679.3,2679.0,0.89334184]
[1739925657405,4.62487357,2679.2,2679.0,0.89334184]
[1739925657774,0.89241357,2679.2,2679.0,0.89334184]
[1739925657974,4.28222,2679.4,2679.0,0.89334184]
[1739925658175,0.0279917,2679.3,2679.0,0.89334184]
[1739925658375,4.28222,2679.4,2679.0,0.89334184]
[1739925659012,0.0279917,2679.3,2679.0,0.89334184]
[1739925659184,4.28222,2679.4,2679.0,0.89334184]
[1739925659381,4.2682537,2679.3,2679.0,0.89334184]
[1739925659585,4.240262,2679.3,2679.0,0.89334184]
[1739925660108,0.507912,2679.3,2679.0,0.89334184]
[1739925660281,0.5359037,2679.3,2679.0,0.89334184]
[1739925660482,4.2683137,2679.3,2679.0,0.89334184]
[1739925660672,0.5359037,2679.3,2679.0,0.89334184]
[1739925661209,3.73213,2679.5,2679.0,6.2305078]
[1739925662421,1.3053,2679.7,2679.0,0.89334184]
[1739925662719,0.55,2679.6,2679.0,0.89334184]
[1739925663015,3.7321,2679.5,2679.0,4.62600184]
[1739925663374,7.46424,2679.5,2679.0,4.62600184]
[1739925663685,4.609054,2679.5,2679.0,4.62600184]
[1739925663886,0.876954,2679.5,2679.0,6.2305078]
[1739925664115,0.55,2679.6,2679.1,3.73259]
[1739925664488,0.55,2679.6,2679.2,0.12629907]
[1739925664686,9.11171,2679.8,2679.2,0.12629907]
[1739925664687,5.38,2679.8,2679.4,0.7589]
[1739925664888,0.0279917,2679.9,2679.4,6.09544596]
[1739925665089,3.73142,2680.0,2679.5,0.12610528]
[1739925665290,4.611677,2680.0,2679.5,0.12610528]
[1739925665816,0.7969,2680.3,2679.7,0.8254]
[1739925665987,3.73123,2680.1,2679.7,0.8254]
[1739925666315,4.28139,2680.0,2679.8,0.12570139]
[1739925666623,13.093,2679.9,2679.8,0.12570139]
[1739925666827,16.82448,2679.9,2679.7,0.8254]
[1739925667121,7.184867,2679.9,2679.8,0.12570139]
[1739925667325,5.07428,2679.9,2679.8,0.12570139]
[1739925667489,3.73242,2679.3,2678.9,0.757]
[1739925667691,3.73245,2679.2,2678.9,0.757]
[1739925667922,3.73259,2679.1,2679.0,0.12610973]
[1739925668125,4.479091,2679.1,2679.0,0.12610973]
[1739925668425,3.73259,2679.1,2679.0,0.12177039]
[1739925668651,3.73259,2679.1,2678.8,0.74329102]
[1739925668775,3.73259,2679.1,2679.0,0.12177039]
[1739925668975,3.73259,2679.1,2678.8,0.74329102]
[1739925669219,3.73259,2679.1,2679.0,0.12177039]
[1739925669394,3.73259,2679.1,2678.8,0.74329102]
[1739925669595,0.0279917,2679.0,2678.8,0.74329102]
[1739925671133,3.73295,2678.9,2678.5,6.1659]
[1739925671291,0.0279917,2678.8,2678.5,6.90326132]
[1739925671492,3.7609417,2678.9,2678.5,6.90326132]
[1739925673259,3.7609417,2678.9,2678.5,6.1659]
[1739925673459,3.7609417,2678.9,2678.5,0.8059]
[1739925674455,3.7609417,2678.9,2678.6,0.12266609]
[1739925674660,4.51055,2678.7,2678.6,0.12266609]
[1739925674826,5.1361417,2678.7,2678.6,0.12266609]
[1739925675033,0.825,2678.5,2677.8,0.7509]
[1739925675246,3.73422,2678.0,2677.9,0.76011615]
[1739925675440,16.83622,2678.0,2677.9,0.76011615]
[1739925675646,16.83622,2678.0,2677.9,1.0395301]
[1739925675847,3.73422,2678.0,2677.9,1.0395301]
[1739925676046,4.563537,2678.0,2677.9,1.0395301]
[1739925676366,4.563537,2678.0,2677.9,0.27941395]
[1739925676932,4.5915287,2678.0,2677.7,0.73336875]
[1739925678565,3.73427,2677.9,2677.7,0.73336875]
[1739925678737,0.8573087,2678.0,2677.7,0.73336875]
[1739925679269,0.0279917,2678.0,2677.5,3.73471]
[1739925679569,0.0279917,2678.0,2677.5,3.73712549]
[1739925680050,0.0279917,2678.0,2677.5,7.47184549]
[1739925680221,0.0279917,2678.0,2677.5,3.73712549]
[1739925680734,0.0279917,2678.0,2677.6,0.74070469]
[1739925680735,3.7621217,2678.0,2677.6,0.74070469]
[1739925681061,3.73434,2677.9,2677.6,0.74070469]
[1739925681268,0.0279917,2677.8,2677.6,0.74070469]
[1739925682167,3.7624017,2677.8,2677.6,0.74070469]
[1739925682765,17.38854,2677.7,2677.6,0.74070469]
[1739925683124,3.73498,2677.4,2677.2,0.8036]
[1739925683319,4.54948,2677.4,2676.9,0.8224]
[1739925683525,4.22091887,2677.3,2677.2,0.76106564]
[1739925683726,3.73525,2677.2,2676.8,5.36]
[1739925684070,0.02511611,2677.1,2676.8,9.09577]
[1739925684279,0.02511611,2677.3,2676.8,9.09577]
[1739925684766,0.02511611,2677.3,2676.9,0.75790482]
[1739925684978,0.8145,2677.4,2676.9,4.49347482]
[1739925685383,0.02511611,2677.3,2676.9,4.49347482]
[1739925686078,0.8145,2677.4,2677.0,3.73539]
[1739925686876,0.8145,2677.4,2676.9,4.49352482]
[1739925687565,4.54947,2677.4,2676.9,4.49352482]
[1739925688578,0.02511611,2677.3,2676.9,0.75790482]
[1739925688877,3.76029611,2677.3,2676.9,0.75790482]
[1739925689277,0.02511611,2677.3,2676.9,4.49355482]
[1739925689481,0.02511611,2677.3,2677.0,0.12581749]
[1739925689689,3.73528,2677.2,2677.0,0.12581749]
[1739925689989,0.02511611,2677.1,2676.7,4.55821]
[1739925690187,0.02511611,2677.1,2676.8,0.00241504]
[1739925692191,0.02511611,2677.1,2676.8,0.74824935]
[1739925692394,0.02511611,2677.1,2676.8,0.00241504]
[1739925692395,4.55603,2677.0,2676.8,0.00241504]
[1739925692686,16.86884611,2676.9,2676.5,0.8128]
[1739925692849,5.38767261,2677.0,2676.6,0.00396111]
[1739925693043,0.02511611,2676.9,2676.6,0.00396111]
[1739925693251,3.76082611,2676.9,2676.3,3.73639]
[1739925693546,3.76082611,2676.9,2676.4,3.7403114]
[1739925693772,3.76082611,2676.9,2676.4,4.47633308]
[1739925694284,3.76081611,2676.9,2676.4,0.0039614]
[1739925694585,3.76081611,2676.9,2676.4,0.01286891]
[1739925695165,3.76081611,2676.9,2676.4,3.74917891]
[1739925695787,0.02511611,2676.9,2676.5,3.73619]
[1739925695987,0.8205,2677.0,2676.6,3.736]
[1739925696287,0.8205,2677.0,2676.6,4.534]
[1739925697187,0.55,2677.1,2676.6,4.53398]
[1739925697399,0.55,2677.1,2676.6,8.26998]
[1739925697684,0.55,2677.1,2676.6,4.53398]
[1739925698802,0.55,2677.1,2676.7,3.73589]
[1739925699167,0.7915,2677.2,2676.8,3.73571]
[1739925699474,0.55,2677.3,2676.8,3.73567]
[1739925699675,0.02511611,2677.2,2676.6,0.798]
[1739925699859,3.73546,2677.1,2676.6,0.798]
[1739925700057,0.02511611,2677.0,2676.6,0.798]
[1739925700595,0.80801611,2677.0,2676.6,0.798]
[1739925701374,0.02511611,2677.0,2676.6,4.53397]
[1739925701694,0.02511611,2677.1,2676.6,5.44346631]
[1739925701868,0.02511611,2677.1,2676.7,3.73585]
[1739925702185,0.02511611,2677.1,2676.6,5.44356631]
[1739925703262,0.02511611,2677.1,2676.7,3.73593]
[1739925704373,0.02511611,2677.1,2676.8,0.1268771]
[1739925704574,0.57511611,2677.1,2676.7,3.73593]
[1739925704881,0.57511611,2677.1,2676.9,0.12681238]
[1739925705086,13.107,2677.0,2676.8,0.1268771]
[1739925705411,0.55,2677.1,2676.7,3.73593]
[1739925705571,0.55,2677.1,2676.8,3.73573]
[1739925705775,4.54314,2677.4,2676.8,3.73573]
[1739925706106,0.55,2677.3,2676.8,3.73573]
[1739925706420,4.2851,2677.3,2676.8,3.73578]
[1739925707209,3.76035611,2677.2,2676.7,3.73594]
[1739925707410,3.73539,2677.1,2676.6,5.26997219]
[1739925707711,0.57511611,2677.0,2676.6,0.798]
[1739925707900,4.31063611,2677.0,2676.4,3.73635]
[1739925708615,8.04627611,2677.0,2676.4,3.73635]
[1739925708767,3.73573,2676.9,2676.3,7.55382]
[1739925708968,3.73573,2676.9,2676.3,1.5846889]
[1739925708969,0.8229,2676.7,2676.3,1.5846889]
[1739925709206,0.84801611,2676.7,2676.3,5.3211789]
[1739925710632,0.02511611,2676.7,2676.5,3.73617]
[1739925712201,0.02511611,2676.7,2676.4,7.47253]
[1739925712419,0.57511611,2676.9,2676.4,3.73625]
[1739925712737,0.57511611,2676.9,2676.5,0.26857894]
[1739925712894,0.57511611,2676.9,2676.5,4.00479894]
[1739925713093,0.55,2676.9,2676.5,4.56365772]
[1739925713337,0.55,2676.9,2676.5,4.00470894]
[1739925713635,0.55,2676.9,2676.5,3.73613]
[1739925714846,0.55,2676.9,2676.6,3.73603]
[1739925714998,13.109,2676.8,2676.6,3.73603]
[1739925715492,13.109,2676.8,2676.5,3.73619]
[1739925715696,0.55,2676.9,2676.6,3.73607]
[1739925716011,13.109,2676.8,2676.6,3.73607]
[1739925719447,13.659,2676.8,2676.7,0.12700297]
[1739925719745,13.659,2676.8,2676.5,3.73613]
[1739925719929,0.7738,2677.0,2676.7,0.12700297]
[1739925720136,13.109,2676.9,2676.6,0.1270677]
[1739925720450,0.7738,2677.0,2676.7,0.12700297]
[1739925720653,13.108,2676.9,2676.7,0.12700297]
[1739925720855,13.108,2676.9,2676.7,3.86281297]
[1739925721948,0.8224,2677.3,2676.8,0.7624]
[1739925722451,0.8224,2677.3,2676.9,0.12687353]
[1739925722665,13.107,2677.2,2676.9,0.12687353]
[1739925724138,15.411457,2677.2,2676.9,0.12687353]
[1739925724539,19.146747,2677.2,2676.7,3.73581]
[1739925724723,2.304457,2677.2,2677.0,0.12680881]
[1739925724925,13.107,2677.1,2676.7,3.73581]
[1739925725238,4.55754,2677.3,2676.7,3.73581]
[1739925726048,3.73527,2677.2,2676.7,3.73581]
[1739925726265,0.8224,2677.3,2676.7,3.73581]
[1739925726550,0.8224,2677.3,2676.8,3.73575]
[1739925727706,0.8224,2677.3,2676.7,3.73581]
[1739925727935,3.73542,2677.1,2676.6,4.53646]
[1739925728147,0.02511611,2677.0,2676.6,4.53646]
[1739925728332,0.02511611,2677.0,2676.6,5.899717]
[1739925728532,0.02511611,2677.1,2676.6,5.899717]
[1739925728735,0.02511611,2677.1,2676.7,0.28000735]
[1739925728943,0.02511611,2677.1,2676.7,4.63480166]
[1739925729334,0.02511611,2677.1,2676.7,0.89889166]
[1739925729535,3.73539,2677.1,2676.7,0.89889166]
[1739925729866,0.02511611,2677.0,2676.7,0.61888431]
[1739925730017,0.02511611,2677.0,2676.7,0.35003037]
[1739925730448,0.02511611,2677.0,2676.6,5.899707]
[1739925730860,0.02511611,2677.0,2676.6,2.163657]
[1739925731034,0.8031,2676.9,2676.6,2.163657]
[1739925731230,4.53879,2676.9,2676.4,9.85164]
[1739925731431,3.76091611,2676.8,2676.4,5.36]
[1739925731633,13.9131,2676.7,2676.4,5.36]
[1739925731863,4.53946,2676.4,2676.3,0.7672889]
[1739925732068,17.67657611,2676.4,2676.3,0.7672889]
[1739925732251,19.84772661,2676.4,2676.3,0.7672889]
[1739925733531,0.7988,2676.1,2675.7,5.36]
[1739925733737,0.02511611,2676.0,2675.8,0.01207958]
[1739925733963,13.13811611,2676.0,2675.7,0.01256286]
[1739925734131,4.53561,2676.1,2675.7,0.0105337]
[1739925734331,0.7694,2675.8,2675.5,0.01264036]
[1739925734587,13.13911611,2675.7,2675.6,0.01053396]
[1739925734882,0.7694,2675.6,2675.5,0.28007892]
[1739925735033,0.79451611,2675.6,2675.5,0.28007892]
[1739925735979,13.114,2675.7,2675.5,4.01768892]
[1739925736151,13.114,2675.7,2675.6,0.0024935]
[1739925736351,13.114,2675.7,2675.5,3.73753]
[1739925736577,3.73627,2676.5,2675.4,3.20926778]
[1739925736578,3.73635,2676.5,2675.7,0.7611]
[1739925736786,0.7711,2676.4,2675.7,0.7611]
[1739925737073,0.57511611,2676.3,2675.7,0.7611]
[1739925737282,4.50776,2676.2,2675.7,3.73721]
[1739925737439,0.02511611,2676.1,2675.5,8.29532]
[1739925737838,3.76189611,2676.1,2675.5,0.8202]
[1739925738034,3.76189611,2676.1,2675.5,4.55773]
[1739925738271,4.64384972,2676.1,2675.5,4.55773]
[1739925738475,4.64384972,2676.1,2675.9,0.76389253]
[1739925738681,13.113,2676.0,2675.9,0.76389253]
[1739925738877,13.113,2676.0,2675.0,9.09828]
[1739925738878,0.55,2675.9,2675.2,0.8075]
[1739925739079,0.79561611,2675.8,2675.3,3.73779]
[1739925739490,0.79561611,2675.8,2675.4,3.73772]
[1739925739655,13.115,2675.7,2675.4,3.73772]
[1739925739856,0.02511611,2675.6,2675.3,0.2679006]
[1739925740051,0.02511611,2675.6,2675.3,4.0057106]
[1739925740388,0.02511611,2675.6,2675.5,3.73761]
[1739925740556,13.115,2675.6,2675.5,3.73761]
[1739925740755,13.114,2675.9,2675.5,3.73761]
[1739925741064,0.88195361,2676.1,2675.7,3.73721]
[1739925741298,13.114,2676.0,2675.7,3.73721]
[1739925742056,4.0063,2676.5,2675.6,0.7965]
[1739925742057,0.8082,2676.6,2676.0,3.73683]
[1739925742295,0.8082,2676.6,2676.1,4.50398]
[1739925742473,13.111,2676.5,2676.1,4.50398]
[1739925742650,13.111,2676.5,2676.1,0.7672]
[1739925744191,13.111,2676.5,2675.9,3.73695]
[1739925744192,3.76151611,2676.4,2675.9,3.73695]
[1739925744860,0.02511611,2676.4,2676.0,3.7369]
[1739925745745,0.02511611,2676.4,2675.9,3.73695]
[1739925745945,0.02511611,2676.4,2675.9,7.47393]
[1739925746193,0.02511611,2676.4,2675.9,7.47391]
[1739925746373,0.02511611,2676.4,2675.9,3.73695]
[1739925746576,0.55,2676.5,2676.1,3.7367]
[1739925746891,13.111,2676.4,2676.1,3.7367]
[1739925748206,13.111,2676.4,2675.9,4.190535]
[1739925748366,0.02511611,2676.3,2675.7,4.53622]
[1739925748567,3.73686,2676.1,2675.6,5.36]
[1739925748766,0.7992,2676.2,2675.5,1.53945018]
[1739925748767,0.7992,2675.9,2675.5,0.75385018]
[1739925749009,0.02511611,2675.8,2675.5,0.75385018]
[1739925749475,0.02511611,2675.8,2675.6,0.12451906]
[1739925749675,13.114,2675.7,2675.6,0.12451906]
[1739925749877,13.114,2675.7,2675.6,3.86198906]
[1739925752493,13.664,2676.0,2675.6,3.86198906]
[1739925754497,0.02511611,2675.9,2675.6,3.86198906]
[1739925754923,13.664,2676.0,2675.6,7.59945906]
[1739925755231,13.664,2676.0,2675.7,3.73733]
[1739925755443,9.915,2676.4,2675.8,3.73713]
[1739925755611,6.1786,2676.4,2676.0,3.73687]
[1739925755936,6.20371611,2676.4,2676.1,0.12452828]
[1739925756096,13.111,2676.3,2676.1,0.12452828]
[1739925756297,0.02511611,2676.2,2676.1,0.12452828]
[1739925756799,0.02511611,2676.2,2676.0,3.73689]
[1739925756998,0.02511611,2676.2,2676.1,0.12452828]
[1739925757213,13.111,2676.3,2676.1,0.12452828]
[1739925758244,13.111,2676.3,2675.9,3.73701]
[1739925758245,0.02511611,2676.2,2675.9,3.73701]
[1739925758742,0.02511611,2676.3,2675.9,3.73701]
[1739925759038,5.38,2676.4,2676.0,3.73682]
[1739925759212,13.112,2676.3,2676.1,4.5471]
[1739925759843,13.112,2676.3,2676.2,3.73664]
[1739925760197,13.112,2676.3,2676.1,0.8104]
[1739925761439,13.112,2676.3,2676.2,0.12432759]
[1739925762633,13.112,2676.3,2676.2,3.86096759]
[1739925762999,6.1999,2676.8,2676.2,0.12432759]
[1739925763000,13.661,2676.6,2676.2,0.12432759]
[1739925763201,13.661,2676.6,2676.3,3.73636]
[1739925763402,13.661,2676.6,2676.4,0.1241981]
[1739925763601,13.111,2676.6,2676.4,0.1241981]
[1739925763817,0.7665,2677.0,2676.5,4.50582]
[1739925764040,0.7665,2677.0,2676.6,3.86006863]
[1739925764210,3.73541,2677.1,2676.6,3.86006863]
[1739925764211,13.109,2676.9,2676.6,3.86006863]
[1739925764741,13.109,2676.9,2676.7,3.73593]
[1739925764894,13.109,2676.9,2676.6,3.86006863]
[1739925765103,13.109,2676.9,2676.8,0.12353138]
[1739925765424,13.109,2676.9,2676.7,3.73591]
[1739925765625,13.109,2676.9,2676.8,3.85933138]
[1739925765825,0.7665,2677.2,2676.8,7.59503138]
[1739925766036,0.02511611,2677.1,2676.8,3.85923138]
[1739925766434,4.5213,2677.5,2676.9,4.56717]
[1739925766585,13.107,2677.4,2676.9,4.56717]
[1739925766785,13.107,2677.4,2676.9,4.69029696]
[1739925768476,0.7864,2677.5,2677.0,3.73551]
[1739925768653,0.7864,2677.5,2677.0,3.85857225]
[1739925769369,4.54636611,2677.5,2677.0,3.85857225]
[1739925769568,3.735,2677.4,2677.0,0.12306225]
[1739925769890,0.02511611,2677.3,2677.0,0.12306225]
[1739925771417,3.735,2677.4,2677.0,0.12306225]
[1739925771754,0.02511611,2677.3,2677.0,0.12306225]
[1739925772266,13.107,2677.2,2677.0,0.12306225]
[1739925772807,13.107,2677.2,2677.0,3.85857225]
[1739925773100,13.107,2677.2,2677.1,3.73538]
[1739925773286,13.107,2677.2,2677.1,0.12286848]
[1739925773471,13.107,2677.2,2677.0,3.73551]
[1739925773676,13.107,2677.2,2677.1,0.12286848]
[1739925775092,13.107,2677.2,2676.9,0.8316]
[1739925775297,3.7351,2677.4,2677.1,0.1223522]
[1739925775468,13.13211611,2677.3,2676.9,4.56723]
[1739925775668,4.560727,2677.4,2677.2,0.12228749]
[1739925775994,13.13211611,2677.3,2676.9,4.56723]
[1739925776199,4.560727,2677.4,2676.9,4.56723]
[1739925776510,0.02511611,2677.3,2676.9,4.56723]
[1739925776868,0.02511611,2677.3,2676.9,0.8316]
[1739925777266,0.02511611,2677.3,2676.9,4.56715]
[1739925777572,4.52127,2677.5,2677.0,3.73549]
[1739925777770,13.107,2677.4,2677.0,3.73549]
[1739925777969,13.107,2677.4,2676.9,0.8316]
[1739925778171,3.73484,2677.5,2677.0,3.73552]
[1739925778480,3.73473,2677.6,2677.0,7.47097]
[1739925778682,0.8153,2677.7,2677.0,4.88663378]
[1739925778922,3.73458,2677.7,2677.2,3.73516]
[1739925779406,3.73458,2677.7,2677.3,0.12222279]
[1739925779708,16.83971,2677.6,2677.1,7.75229778]
[1739925779906,16.83971,2677.6,2677.4,0.12215809]
[1739925779907,3.73471,2677.6,2677.4,0.12215809]
[1739925780070,13.105,2677.5,2677.1,7.75231778]
[1739925780267,3.73471,2677.6,2677.5,0.1220934]
[1739925780466,16.86482611,2677.6,2677.1,9.75849033]
[1739925780679,3.73471,2677.6,2677.5,0.1220934]
[1739925780880,16.83971,2677.6,2677.1,9.75851033]
[1739925781075,3.73471,2677.6,2677.5,0.1220934]
[1739925781281,16.86482611,2677.6,2677.1,9.75851033]
[1739925781585,3.73471,2677.6,2677.5,0.1220934]
[1739925781906,16.86482611,2677.6,2677.5,0.1220934]
[1739925782115,16.83971,2677.6,2677.1,9.75851033]
[1739925782275,3.73471,2677.6,2677.5,0.1220934]
[1739925782475,16.83971,2677.6,2677.1,8.49461817]
[1739925782675,3.73471,2677.6,2677.5,0.1220934]
[1739925782876,16.83971,2677.6,2677.1,9.71762199]
[1739925783076,3.73471,2677.6,2677.5,0.1220934]
[1739925783384,13.105,2677.6,2677.1,1.54998039]
[1739925783567,0.8153,2677.9,2677.1,2.61452043]
[1739925783767,0.02511611,2677.8,2677.2,0.12228749]
[1739925786145,0.02511611,2677.8,2677.2,3.85751749]
[1739925786313,0.8153,2677.9,2677.3,0.8091]
[1739925786510,13.105,2677.8,2677.3,0.93132279]
[1739925786718,0.02511611,2677.7,2677.3,0.93132279]
[1739925788221,13.105,2677.6,2677.3,0.12222279]
[1739925788548,0.83361611,2677.5,2677.0,0.8171]
[1739925788746,0.83361611,2677.5,2677.4,0.12215809]
[1739925788960,13.9145,2677.5,2677.0,8.31743021]
[1739925789135,0.756,2677.7,2677.4,0.12215809]
[1739925789304,13.106,2677.6,2677.0,8.31743021]
[1739925789504,0.756,2677.7,2677.5,0.12188969]
[1739925789733,13.106,2677.6,2677.0,8.31743021]
[1739925789934,0.756,2677.7,2677.6,0.121825]
[1739925790132,13.862,2677.7,2677.0,8.31743021]
[1739925790450,0.02511611,2677.6,2677.0,4.58192021]
[1739925790652,0.8127,2677.5,2676.9,5.36]
[1739925790849,0.02511611,2677.4,2676.9,5.36]
[1739925793018,13.108,2677.3,2676.9,5.36]
[1739925793357,2.16012772,2677.2,2676.5,4.54798]
[1739925793524,0.84681611,2677.2,2676.5,4.54798]
[1739925793720,0.84681611,2677.2,2676.8,0.8118]
[1739925793721,0.02511611,2677.2,2676.8,0.8118]
[1739925793917,0.55,2677.5,2676.8,0.8118]
[1739925794149,0.7866,2677.3,2676.6,8.49904519]
[1739925794443,0.02511611,2677.2,2676.6,10.63448199]
[1739925794605,0.02511611,2677.2,2676.6,7.42521421]
[1739925794801,0.02511611,2677.2,2676.7,3.85809967]
[1739925795006,0.02511611,2677.2,2676.7,0.7405707]
[1739925795537,13.108,2677.1,2676.7,0.7405707]
[1739925795846,0.02511611,2677.0,2676.7,0.7405707]
[1739925796147,0.02511611,2677.0,2676.8,0.28007557]
[1739925796346,0.02511611,2677.0,2676.8,0.40218052]
[1739925797046,0.02511611,2677.0,2676.8,0.12210495]
[1739925797350,0.02511611,2677.0,2676.6,1.55370741]
[1739925797549,0.7866,2677.3,2676.9,0.12204023]
[1739925797706,13.13311611,2677.2,2676.7,3.73593]
[1739925798047,0.7866,2677.3,2676.7,3.73593]
[1739925798257,0.7866,2677.3,2676.8,3.85803904]
[1739925798543,0.83241611,2677.6,2676.9,4.94988403]
[1739925798752,0.83241611,2677.6,2676.9,1.33657835]
[1739925798955,0.83241611,2677.6,2677.0,3.73549]
[1739925799123,0.83241611,2677.6,2677.0,3.85764961]
[1739925799619,5.38,2677.7,2677.2,3.73516]
[1739925799935,13.106,2677.6,2677.3,0.12195791]
[1739925800135,13.106,2677.6,2677.2,3.73516]
[1739925800347,13.106,2677.6,2677.4,0.12189322]
[1739925800549,13.106,2677.6,2677.2,3.73516]
[1739925800751,0.8073,2677.8,2677.5,0.12182853]
[1739925800951,13.105,2677.7,2677.3,3.73507]
[1739925801136,0.8073,2677.8,2677.6,0.12176384]
[1739925801340,13.105,2677.7,2677.1,0.8005]
[1739925801582,0.8073,2677.8,2677.7,0.12169916]
[1739925801873,0.8073,2677.8,2676.9,0.7687]
[1739925801874,0.7754,2677.6,2676.9,0.7687]
[1739925802032,3.83974,2677.6,2676.9,0.7687]
[1739925802233,0.7754,2677.6,2676.9,0.7687]
[1739925802735,0.7754,2677.6,2677.0,0.26839148]
[1739925803067,13.107,2677.5,2677.0,0.61856796]
[1739925803276,0.02511611,2677.4,2677.0,0.61856796]
[1739925803469,0.02511611,2677.4,2677.0,4.35406796]
[1739925803642,0.7754,2677.6,2677.0,8.08948796]
[1739925804011,0.02511611,2677.5,2677.0,4.08559648]
[1739925804554,0.02511611,2677.5,2676.9,0.7687]
[1739925804774,0.02511611,2677.5,2676.6,3.20926778]
[1739925804775,0.8048,2677.3,2676.6,3.736]
[1739925804955,0.02511611,2677.2,2676.7,0.7682]
[1739925805435,0.8048,2677.3,2676.8,3.73578]
[1739925805635,13.108,2677.2,2676.8,3.73578]
[1739925806543,13.108,2677.2,2676.7,1.78378324]
[1739925806879,0.02511611,2677.1,2676.7,1.78378324]
[1739925807031,0.8048,2677.0,2676.7,1.01558324]
[1739925807375,0.8048,2677.0,2676.8,0.35033507]
[1739925807677,13.108,2676.9,2676.8,0.35033507]
[1739925809247,13.108,2676.9,2676.8,0.472569]
[1739925811841,13.108,2676.9,2676.8,0.12223393]
[1739925812040,13.108,2676.9,2676.7,0.74706014]
[1739925812243,0.7819,2677.2,2676.8,0.12228147]
[1739925812592,13.13311611,2677.1,2676.7,0.74706014]
[1739925812789,0.7819,2677.2,2676.9,0.12221675]
[1739925812990,13.13311611,2677.1,2676.8,0.12228147]
[1739925813146,14.41984465,2677.1,2677.0,0.12215203]
[1739925813348,14.41984465,2677.1,2676.7,0.74706014]
[1739925813659,1.31184465,2677.1,2676.7,0.74706014]
[1739925813870,0.02511611,2677.1,2676.8,0.12228147]
[1739925814078,13.108,2677.0,2676.7,4.48298014]
[1739925814382,0.7819,2677.2,2676.9,0.1222507]
[1739925814583,13.13311611,2677.1,2676.8,0.12231542]
[1739925814787,13.108,2677.1,2677.0,0.12218598]
[1739925814945,13.108,2677.1,2676.9,0.1222507]
[1739925815152,13.108,2677.1,2676.8,8.25512]
[1739925815491,0.55,2677.3,2676.9,0.1222507]
[1739925815792,13.107,2677.2,2676.9,0.1222507]
[1739925815951,0.8092,2677.4,2676.9,0.47253303]
[1739925817215,0.02511611,2677.3,2676.9,0.47253303]
[1739925817351,0.02511611,2677.3,2676.9,0.1222507]
[1739925820690,0.8092,2677.4,2676.9,3.8579007]
[1739925820902,0.78321611,2677.6,2677.0,3.73544]
[1739925821093,0.78321611,2677.6,2677.0,3.85762598]
[1739925821595,0.7581,2677.6,2677.1,0.8233]
[1739925821765,13.106,2677.5,2677.1,0.8233]
[1739925821951,13.106,2677.5,2677.2,0.12205657]
[1739925822152,15.11231,2677.5,2677.2,0.12205657]
[1739925824111,0.02511611,2677.4,2677.2,0.12205657]
[1739925825112,0.02511611,2677.4,2676.9,0.7807]
[1739925825319,0.02511611,2677.4,2677.3,0.12186965]
[1739925825477,13.13111611,2677.4,2676.9,4.51629]
[1739925825677,0.7581,2677.6,2677.0,3.85746377]
[1739925825880,0.02511611,2677.5,2677.0,3.85746377]
[1739925826110,0.02511611,2677.5,2677.0,0.12206377]
[1739925829881,13.107,2677.4,2677.0,0.12206377]
[1739925830116,0.02511611,2677.3,2677.0,0.12206377]
[1739925831934,0.79411611,2677.3,2677.0,0.12206377]
[1739925832121,2.18422772,2677.3,2677.0,0.12206377]
[1739925832429,1.41522772,2677.3,2677.0,0.12206377]
[1739925832631,0.02511611,2677.3,2677.0,0.12206377]
[1739925836902,0.02511611,2677.3,2677.0,3.85754377]
[1739925837104,13.107,2677.4,2677.0,3.85754377]
[1739925838043,13.107,2677.4,2677.0,3.85758377]
[1739925838241,13.107,2677.4,2677.0,0.12206377]
[1739925838843,13.107,2677.4,2677.0,3.85749377]
[1739925842261,0.02511611,2677.3,2677.0,0.12206377]
[1739925845352,0.02511611,2677.3,2677.0,3.85751377]
[1739925845559,14.79008506,2677.4,2677.0,3.85751377]
[1739925846356,14.79008506,2677.4,2677.1,4.08604049]
[1739925846531,14.79008506,2677.4,2677.2,0.12164239]
[1739925848548,14.79008506,2677.4,2677.0,3.73552]
[1739925848748,14.79008506,2677.4,2677.1,0.12170031]
[1739925854585,14.79008506,2677.4,2677.2,1.60667012]
[1739925854735,14.79008506,2677.4,2677.3,0.12157091]
[1739925854935,14.79008506,2677.4,2677.2,1.60667012]
[1739925855137,14.79008506,2677.4,2677.3,0.12157091]
[1739925855487,14.79008506,2677.4,2677.2,1.60667012]
[1739925855651,14.79008506,2677.4,2677.3,0.12157091]
[1739925856186,14.79008506,2677.4,2677.2,1.60667012]
[1739925856489,14.79008506,2677.4,2677.3,0.12157091]
[1739925856888,14.79008506,2677.4,2677.2,1.60667012]